[Event "*** Titled Tuesday 3|2 Blitz"]
[Site "Chess.com"]
[Date "2016.01.05"]
[Round "6"]
[White "RitchieBlackmore"]
[Black "DeviatkinAndrey"]
[Result "1/2-1/2"]
[WhiteElo "2461"]
[BlackElo "2474"]
[TimeControl "180+2"]
[EndTime "18:11:18 PST"]
[Termination "Game drawn by agreement"]

1. d4 {[%clk 0:02:56]} 1... d5 {[%clk 0:02:59.9]} 2. Nf3 {[%clk 0:02:57.1]} 2...
Nf6 {[%clk 0:03:00.6]} 3. Bg5 {[%clk 0:02:56.3]} 3... e6 {[%clk 0:02:59.7]} 4.
Nbd2 {[%clk 0:02:55.4]} 4... Be7 {[%clk 0:03:00.8]} 5. Bxf6 {[%clk 0:02:54.3]}
5... Bxf6 {[%clk 0:03:01.5]} 6. e4 {[%clk 0:02:54.7]} 6... c5 {[%clk 0:02:56.7]}
7. exd5 {[%clk 0:02:53.3]} 7... Qxd5 {[%clk 0:02:50.6]} 8. Bc4 {[%clk
0:02:51.6]} 8... Qd8 {[%clk 0:02:50.8]} 9. O-O {[%clk 0:02:48.5]} 9... cxd4
{[%clk 0:02:50.7]} 10. Ne4 {[%clk 0:02:48.9]} 10... Nc6 {[%clk 0:02:52]} 11. Bb5
{[%clk 0:02:47.7]} 11... e5 {[%clk 0:02:49.4]} 12. c3 {[%clk 0:02:46.3]} 12...
O-O {[%clk 0:02:40.2]} 13. Bxc6 {[%clk 0:02:43.8]} 13... bxc6 {[%clk 0:02:40.9]}
14. cxd4 {[%clk 0:02:44.3]} 14... exd4 {[%clk 0:02:12.3]} 15. Nxf6+ {[%clk
0:02:44.2]} 15... Qxf6 {[%clk 0:02:13.5]} 16. Qxd4 {[%clk 0:02:46.1]} 16... Qxd4
{[%clk 0:02:14.2]} 17. Nxd4 {[%clk 0:02:46.4]} 17... c5 {[%clk 0:02:15.8]} 18.
Nc6 {[%clk 0:02:42.2]} 18... Be6 {[%clk 0:02:13.9]} 19. Rfc1 {[%clk 0:02:39.3]}
19... c4 {[%clk 0:02:15.3]} 20. Ne5 {[%clk 0:02:36.4]} 20... Rab8 {[%clk
0:02:14]} 21. Nxc4 {[%clk 0:02:34.8]} 21... Bxc4 {[%clk 0:02:14.6]} 22. Rxc4
{[%clk 0:02:35.7]} 22... Rxb2 {[%clk 0:02:16.1]} 23. Rc7 {[%clk 0:02:34.3]}
23... Rfb8 {[%clk 0:02:12.2]} 24. Rac1 {[%clk 0:02:31.2]} 24... h6 {[%clk
0:02:03.2]} 25. Rxa7 {[%clk 0:02:30.1]} 25... Rc2 {[%clk 0:01:53.7]} 26. Rf1
{[%clk 0:02:30.8]} 26... Rbb2 {[%clk 0:01:54.2]} 27. a4 {[%clk 0:02:29.6]} 27...
Ra2 {[%clk 0:01:55.4]} 28. a5 {[%clk 0:02:27.6]} 28... g5 {[%clk 0:01:55.8]} 29.
g3 {[%clk 0:02:24.3]} 29... Kg7 {[%clk 0:01:56.3]} 30. a6 {[%clk 0:02:24.8]}
30... h5 {[%clk 0:01:55.4]} 31. Kg2 {[%clk 0:02:22.7]} 31... g4 {[%clk
0:01:55.7]} 32. h3 {[%clk 0:02:21.5]} 32... Rc6 {[%clk 0:01:53.3]} 33. hxg4
{[%clk 0:02:19.1]} 33... hxg4 {[%clk 0:01:54.6]} 34. Rb7 {[%clk 0:02:17.9]}
34... Rcxa6 {[%clk 0:01:53]} 35. Rb4 {[%clk 0:02:18.9]} 35... R2a4 {[%clk
0:01:53.4]} 1/2-1/2

[Event "*** Titled Tuesday 3|2 Blitz"]
[Site "Chess.com"]
[Date "2016.01.05"]
[Round "6"]
[White "jcgs1030"]
[Black "MinhGTrAn"]
[Result "0-1"]
[WhiteElo "2210"]
[BlackElo "2542"]
[TimeControl "180+2"]
[EndTime "18:11:39 PST"]
[Termination "MinhGTrAn won by resignation"]

1. e4 {[%clk 0:03:01.9]} 1... c5 {[%clk 0:03:00.9]} 2. Nf3 {[%clk 0:02:59.7]}
2... d6 {[%clk 0:03:02]} 3. d4 {[%clk 0:02:57]} 3... cxd4 {[%clk 0:03:03.9]} 4.
Nxd4 {[%clk 0:02:57.5]} 4... Nf6 {[%clk 0:03:05.5]} 5. Nc3 {[%clk 0:02:58.9]}
5... a6 {[%clk 0:03:07]} 6. Bg5 {[%clk 0:02:59.7]} 6... e6 {[%clk 0:03:08]} 7.
f4 {[%clk 0:02:59.4]} 7... Be7 {[%clk 0:03:09.6]} 8. Qe2 {[%clk 0:03:00.5]} 8...
h6 {[%clk 0:03:08.8]} 9. Bh4 {[%clk 0:02:56.5]} 9... Qc7 {[%clk 0:03:08.6]} 10.
O-O-O {[%clk 0:02:56.5]} 10... Nbd7 {[%clk 0:03:09.7]} 11. f5 {[%clk 0:02:56]}
11... e5 {[%clk 0:03:09.2]} 12. Nf3 {[%clk 0:02:51.3]} 12... b5 {[%clk
0:03:08.6]} 13. Rg1 {[%clk 0:02:48.3]} 13... Bb7 {[%clk 0:03:08.3]} 14. g4
{[%clk 0:02:27.3]} 14... Nb6 {[%clk 0:02:21.9]} 15. Bf2 {[%clk 0:01:55.2]} 15...
b4 {[%clk 0:02:13.6]} 16. Bxb6 {[%clk 0:01:43.5]} 16... Qxb6 {[%clk 0:02:15.5]}
17. Nd5 {[%clk 0:01:41.5]} 17... Nxd5 {[%clk 0:01:37.9]} 18. exd5 {[%clk
0:01:43.4]} 18... Qa5 {[%clk 0:01:39.8]} 19. Qc4 {[%clk 0:01:31.2]} 19... Rc8
{[%clk 0:01:36.8]} 20. Qb3 {[%clk 0:01:33.1]} 20... Rc5 {[%clk 0:01:23.3]} 21.
Qc4 {[%clk 0:01:35]} 21... Rxc4 {[%clk 0:01:21.7]} 22. Bxc4 {[%clk 0:01:36.3]}
0-1

[Event "*** Titled Tuesday 3|2 Blitz"]
[Site "Chess.com"]
[Date "2016.01.05"]
[Round "6"]
[White "FairChess_on_YouTube"]
[Black "cheese111"]
[Result "1-0"]
[WhiteElo "2736"]
[BlackElo "2260"]
[TimeControl "180+2"]
[EndTime "18:11:44 PST"]
[Termination "FairChess_on_YouTube won by resignation"]

1. e4 {[%clk 0:03:01.9]} 1... e5 {[%clk 0:03:00.6]} 2. Nf3 {[%clk 0:03:02.6]}
2... Nc6 {[%clk 0:03:01.6]} 3. Bb5 {[%clk 0:03:03.6]} 3... a6 {[%clk 0:03:02.7]}
4. Ba4 {[%clk 0:03:04.5]} 4... Nf6 {[%clk 0:03:03.5]} 5. O-O {[%clk 0:03:05.7]}
5... Be7 {[%clk 0:03:04.5]} 6. Bxc6 {[%clk 0:03:06.4]} 6... dxc6 {[%clk
0:03:05.1]} 7. d3 {[%clk 0:03:08]} 7... Nd7 {[%clk 0:03:05.8]} 8. Nbd2 {[%clk
0:03:09.1]} 8... O-O {[%clk 0:03:04.6]} 9. Nc4 {[%clk 0:03:10.1]} 9... f6 {[%clk
0:03:04.7]} 10. Nh4 {[%clk 0:03:11.6]} 10... Nc5 {[%clk 0:03:04.7]} 11. b3
{[%clk 0:03:13.1]} 11... Ne6 {[%clk 0:03:02.6]} 12. Nf5 {[%clk 0:03:10.7]} 12...
c5 {[%clk 0:02:58.2]} 13. Qg4 {[%clk 0:03:06.5]} 13... g6 {[%clk 0:02:42.6]} 14.
Qg3 {[%clk 0:02:52.4]} 14... Nd4 {[%clk 0:02:31.3]} 15. Nxd4 {[%clk 0:02:51.8]}
15... exd4 {[%clk 0:02:05.7]} 16. Bf4 {[%clk 0:02:51]} 16... b5 {[%clk 0:01:40]}
17. Bxc7 {[%clk 0:02:50.5]} 17... Qe8 {[%clk 0:01:41.1]} 18. Nb6 {[%clk
0:02:41.8]} 18... Ra7 {[%clk 0:01:39.2]} 19. Nd5 {[%clk 0:02:43.1]} 19... Rf7
{[%clk 0:01:01]} 20. Nxe7+ {[%clk 0:02:39.2]} 20... Rxe7 {[%clk 0:01:01.9]} 21.
Bd6 {[%clk 0:02:40]} 21... Red7 {[%clk 0:01:03]} 22. Bxc5 {[%clk 0:02:39.3]}
22... Rac7 {[%clk 0:01:03.8]} 23. b4 {[%clk 0:02:40.5]} 23... Rc6 {[%clk
0:01:04.4]} 24. f4 {[%clk 0:02:37.8]} 24... Qf7 {[%clk 0:00:50.8]} 25. a3 {[%clk
0:02:33.2]} 25... Bb7 {[%clk 0:00:40.1]} 26. f5 {[%clk 0:02:32.2]} 26... g5
{[%clk 0:00:37.1]} 27. Rae1 {[%clk 0:02:32.3]} 27... Rc8 {[%clk 0:00:30.1]} 28.
e5 {[%clk 0:02:32.3]} 1-0

[Event "*** Titled Tuesday 3|2 Blitz"]
[Site "Chess.com"]
[Date "2016.01.05"]
[Round "6"]
[White "kharposh"]
[Black "Piccadilly123"]
[Result "0-1"]
[WhiteElo "2065"]
[BlackElo "1733"]
[TimeControl "180+2"]
[EndTime "18:12:04 PST"]
[Termination "Piccadilly123 won by resignation"]

1. e4 {[%clk 0:03:01.9]} 1... c5 {[%clk 0:03:00.2]} 2. Nf3 {[%clk 0:03:03.2]}
2... d6 {[%clk 0:03:01.3]} 3. d4 {[%clk 0:03:04.6]} 3... cxd4 {[%clk 0:03:02.4]}
4. Nxd4 {[%clk 0:03:06.3]} 4... Nf6 {[%clk 0:03:03.5]} 5. Nc3 {[%clk 0:03:07.9]}
5... g6 {[%clk 0:03:04.5]} 6. Bc4 {[%clk 0:03:09.2]} 6... Bg7 {[%clk 0:03:05]}
7. Be3 {[%clk 0:03:07.3]} 7... Ng4 {[%clk 0:03:03.9]} 8. Bg5 {[%clk 0:03:06.1]}
8... h6 {[%clk 0:02:59.7]} 9. Bb5+ {[%clk 0:03:01.9]} 9... Kf8 {[%clk
0:02:56.3]} 10. Bh4 {[%clk 0:02:57]} 10... Qb6 {[%clk 0:02:50.5]} 11. Nd5 {[%clk
0:02:44.1]} 11... Qxd4 {[%clk 0:02:38.4]} 12. Qxd4 {[%clk 0:02:41.9]} 12... Bxd4
{[%clk 0:02:39]} 13. Nc7 {[%clk 0:02:43.1]} 13... Bxb2 {[%clk 0:02:32.9]} 14.
Rb1 {[%clk 0:02:41.5]} 14... Bc3+ {[%clk 0:02:33.4]} 15. Ke2 {[%clk 0:02:41.9]}
15... a6 {[%clk 0:02:33.6]} 16. Bd3 {[%clk 0:02:40.7]} 16... Ra7 {[%clk
0:02:28.6]} 17. Nd5 {[%clk 0:02:35.2]} 17... Bf6 {[%clk 0:02:22.7]} 18. Bg3
{[%clk 0:02:26.7]} 18... Nc6 {[%clk 0:02:17.5]} 19. Nb6 {[%clk 0:02:23.5]} 19...
Kg7 {[%clk 0:02:07.6]} 20. h3 {[%clk 0:02:23.5]} 20... Nd4+ {[%clk 0:02:01.3]}
21. Kd2 {[%clk 0:02:18.3]} 21... Ne5 {[%clk 0:01:56.7]} 22. c3 {[%clk
0:02:14.4]} 22... Ndc6 {[%clk 0:01:52.8]} 23. f4 {[%clk 0:02:02.3]} 23... Nxd3
{[%clk 0:01:50]} 24. Kxd3 {[%clk 0:02:02.6]} 24... Be6 {[%clk 0:01:49.3]} 25.
Rhe1 {[%clk 0:01:50.8]} 25... Rd8 {[%clk 0:01:45.9]} 26. Rb2 {[%clk 0:01:43.3]}
26... Kf8 {[%clk 0:01:43.4]} 27. Kc2 {[%clk 0:01:42.4]} 27... Na5 {[%clk
0:01:40.1]} 28. e5 {[%clk 0:01:40.9]} 28... dxe5 {[%clk 0:01:40.8]} 29. fxe5
{[%clk 0:01:41.3]} 29... Bg5 {[%clk 0:01:36.8]} 30. Rd1 {[%clk 0:01:30.4]} 30...
Bf5+ {[%clk 0:01:34.7]} 0-1

[Event "*** Titled Tuesday 3|2 Blitz"]
[Site "Chess.com"]
[Date "2016.01.05"]
[Round "6"]
[White "mateueasily"]
[Black "Cecile_Haussernot"]
[Result "1-0"]
[WhiteElo "2326"]
[BlackElo "2178"]
[TimeControl "180+2"]
[EndTime "18:12:10 PST"]
[Termination "mateueasily won by resignation"]

1. e4 {[%clk 0:03:01.9]} 1... c5 {[%clk 0:03:00.7]} 2. c3 {[%clk 0:03:02.4]}
2... Nf6 {[%clk 0:03:01.1]} 3. e5 {[%clk 0:03:02.5]} 3... Nd5 {[%clk 0:03:02.3]}
4. g3 {[%clk 0:03:04]} 4... d6 {[%clk 0:02:59.7]} 5. exd6 {[%clk 0:03:03.6]}
5... e6 {[%clk 0:02:58.5]} 6. Bg2 {[%clk 0:03:04.3]} 6... Bxd6 {[%clk
0:02:59.8]} 7. Ne2 {[%clk 0:03:05.4]} 7... O-O {[%clk 0:03:00.5]} 8. O-O {[%clk
0:03:04.9]} 8... Nc6 {[%clk 0:02:56.4]} 9. d4 {[%clk 0:03:04.7]} 9... c4 {[%clk
0:02:49.5]} 10. b3 {[%clk 0:03:03.3]} 10... b5 {[%clk 0:02:42.9]} 11. a4 {[%clk
0:03:02.9]} 11... Ba6 {[%clk 0:02:37]} 12. Nd2 {[%clk 0:02:30.9]} 12... cxb3
{[%clk 0:02:33.7]} 13. axb5 {[%clk 0:02:30.8]} 13... Bxb5 {[%clk 0:02:34]} 14.
c4 {[%clk 0:02:30.8]} 14... Qb6 {[%clk 0:02:08]} 15. cxb5 {[%clk 0:02:16.7]}
15... Qxb5 {[%clk 0:02:05.6]} 16. Nxb3 {[%clk 0:02:18.2]} 16... Rab8 {[%clk
0:02:02]} 17. Nd2 {[%clk 0:02:18]} 17... a5 {[%clk 0:02:00.6]} 18. Ne4 {[%clk
0:02:17.9]} 18... Be7 {[%clk 0:01:59]} 19. N2c3 {[%clk 0:02:17.7]} 19... Nxc3
{[%clk 0:01:56.8]} 20. Nxc3 {[%clk 0:02:18.6]} 20... Qc4 {[%clk 0:01:58.3]} 21.
Ne2 {[%clk 0:02:18.6]} 21... Bb4 {[%clk 0:01:40.5]} 22. Bf4 {[%clk 0:02:15.8]}
22... Rbd8 {[%clk 0:01:38.9]} 23. Rc1 {[%clk 0:02:15.2]} 23... Qa2 {[%clk
0:01:30.4]} 24. Rxc6 {[%clk 0:02:11.4]} 24... f6 {[%clk 0:01:31.4]} 25. Qc2
{[%clk 0:02:06.5]} 25... Qxc2 {[%clk 0:01:23.4]} 26. Rxc2 {[%clk 0:02:05.6]}
26... a4 {[%clk 0:01:16.4]} 27. Rc4 {[%clk 0:02:05.6]} 1-0

[Event "*** Titled Tuesday 3|2 Blitz"]
[Site "Chess.com"]
[Date "2016.01.05"]
[Round "6"]
[White "Aygehovit1992"]
[Black "tigra"]
[Result "0-1"]
[WhiteElo "2388"]
[BlackElo "2288"]
[TimeControl "180+2"]
[EndTime "18:12:42 PST"]
[Termination "tigra won by resignation"]

1. e3 {[%clk 0:03:01.9]} 1... Nf6 {[%clk 0:03:00.1]} 2. c4 {[%clk 0:03:03.6]}
2... e5 {[%clk 0:03:01]} 3. Nc3 {[%clk 0:03:05.1]} 3... Nc6 {[%clk 0:03:00.2]}
4. a3 {[%clk 0:03:02.7]} 4... d5 {[%clk 0:02:59.4]} 5. cxd5 {[%clk 0:03:03.5]}
5... Nxd5 {[%clk 0:03:00.8]} 6. Qc2 {[%clk 0:03:03]} 6... Nxc3 {[%clk
0:02:52.8]} 7. bxc3 {[%clk 0:03:01.1]} 7... Bd6 {[%clk 0:02:51.8]} 8. d4 {[%clk
0:03:00.3]} 8... O-O {[%clk 0:02:51.5]} 9. Nf3 {[%clk 0:03:01.5]} 9... Qe7
{[%clk 0:02:50.3]} 10. Bc4 {[%clk 0:02:43.4]} 10... Na5 {[%clk 0:02:46.7]} 11.
Ba2 {[%clk 0:02:42.3]} 11... c5 {[%clk 0:02:40.5]} 12. dxe5 {[%clk 0:02:41.9]}
12... Bxe5 {[%clk 0:02:41.3]} 13. Nxe5 {[%clk 0:02:42]} 13... Qxe5 {[%clk
0:02:42.1]} 14. f4 {[%clk 0:02:14.2]} 14... Bf5 {[%clk 0:02:35.3]} 15. fxe5
{[%clk 0:02:13]} 15... Bxc2 {[%clk 0:02:35.9]} 16. e6 {[%clk 0:02:13.8]} 16...
Bb3 {[%clk 0:02:28.5]} 17. exf7+ {[%clk 0:02:12.4]} 17... Rxf7 {[%clk
0:02:29.3]} 18. Bb1 {[%clk 0:02:01.8]} 18... Rd8 {[%clk 0:02:27]} 19. Ke2 {[%clk
0:01:25.5]} 19... Bc4+ {[%clk 0:01:32.7]} 20. Ke1 {[%clk 0:01:26.3]} 20... Nb3
{[%clk 0:01:12.9]} 21. Ba2 {[%clk 0:01:26.9]} 21... Rd3 {[%clk 0:01:11.6]} 22.
Bxb3 {[%clk 0:01:26.7]} 22... Bxb3 {[%clk 0:01:12.3]} 23. Rb1 {[%clk 0:00:39.2]}
23... Rd1+ {[%clk 0:01:11.1]} 0-1

[Event "*** Titled Tuesday 3|2 Blitz"]
[Site "Chess.com"]
[Date "2016.01.05"]
[Round "6"]
[White "Recombinant"]
[Black "pedromartinez91"]
[Result "0-1"]
[WhiteElo "2184"]
[BlackElo "2092"]
[TimeControl "180+2"]
[EndTime "18:13:00 PST"]
[Termination "pedromartinez91 won by resignation"]

1. d4 {[%clk 0:03:01.9]} 1... d5 {[%clk 0:03:00.1]} 2. c4 {[%clk 0:03:02]} 2...
dxc4 {[%clk 0:03:00.8]} 3. Nf3 {[%clk 0:03:02.5]} 3... Nf6 {[%clk 0:03:00.4]} 4.
e3 {[%clk 0:03:03.6]} 4... e6 {[%clk 0:03:00.6]} 5. Bxc4 {[%clk 0:03:04.3]} 5...
c5 {[%clk 0:03:02]} 6. O-O {[%clk 0:03:04.1]} 6... Nc6 {[%clk 0:03:03.4]} 7. Nc3
{[%clk 0:03:04.3]} 7... a6 {[%clk 0:03:02.3]} 8. a4 {[%clk 0:03:05]} 8... Be7
{[%clk 0:03:00.3]} 9. dxc5 {[%clk 0:03:05.2]} 9... Qa5 {[%clk 0:02:55.7]} 10.
Qe2 {[%clk 0:02:35.3]} 10... Qxc5 {[%clk 0:02:55.4]} 11. e4 {[%clk 0:02:30.4]}
11... Qh5 {[%clk 0:02:49.4]} 12. e5 {[%clk 0:02:29.3]} 12... Ng4 {[%clk
0:02:49.2]} 13. Bf4 {[%clk 0:02:26.9]} 13... O-O {[%clk 0:02:16.2]} 14. h3
{[%clk 0:02:27.4]} 14... Nh6 {[%clk 0:02:16.5]} 15. Rad1 {[%clk 0:02:21]} 15...
Rd8 {[%clk 0:01:57.8]} 16. Rxd8+ {[%clk 0:02:19]} 16... Bxd8 {[%clk 0:01:58.1]}
17. Rd1 {[%clk 0:02:18.7]} 17... Bb6 {[%clk 0:01:58]} 18. Ne4 {[%clk 0:02:18.1]}
18... Nf5 {[%clk 0:01:35.1]} 19. g4 {[%clk 0:01:56.2]} 19... Qxh3 {[%clk
0:01:34.8]} 20. gxf5 {[%clk 0:01:57.3]} 20... Qg4+ {[%clk 0:01:32.9]} 21. Bg3
{[%clk 0:01:56.9]} 21... exf5 {[%clk 0:01:33.8]} 22. a5 {[%clk 0:01:46.3]} 22...
fxe4 {[%clk 0:01:19.8]} 23. axb6 {[%clk 0:01:37.3]} 23... exf3 {[%clk
0:01:20.7]} 24. Qe3 {[%clk 0:01:23.1]} 24... Qxc4 {[%clk 0:01:17.2]} 25. Qg5
{[%clk 0:00:59]} 25... Be6 {[%clk 0:01:15.3]} 26. Kh2 {[%clk 0:00:43.4]} 26...
h6 {[%clk 0:01:14.3]} 27. Qe3 {[%clk 0:00:42.4]} 27... Qg4 {[%clk 0:01:14.4]}
0-1

[Event "*** Titled Tuesday 3|2 Blitz"]
[Site "Chess.com"]
[Date "2016.01.05"]
[Round "6"]
[White "Silent_Terror"]
[Black "nijat_a"]
[Result "0-1"]
[WhiteElo "2591"]
[BlackElo "2729"]
[TimeControl "180+2"]
[EndTime "18:14:07 PST"]
[Termination "nijat_a won by resignation"]

1. e4 {[%clk 0:03:01.9]} 1... Nf6 {[%clk 0:03:01.9]} 2. Nc3 {[%clk 0:03:02.4]}
2... e5 {[%clk 0:03:02.4]} 3. Nf3 {[%clk 0:03:03.1]} 3... Nc6 {[%clk 0:03:03.3]}
4. Be2 {[%clk 0:02:59.9]} 4... Bb4 {[%clk 0:03:00.9]} 5. d3 {[%clk 0:02:55.4]}
5... d5 {[%clk 0:03:00.1]} 6. exd5 {[%clk 0:02:55.1]} 6... Nxd5 {[%clk 0:03:02]}
7. Bd2 {[%clk 0:02:55.6]} 7... O-O {[%clk 0:02:59.4]} 8. O-O {[%clk 0:02:55.8]}
8... Bf5 {[%clk 0:02:44.9]} 9. Nxd5 {[%clk 0:02:54.9]} 9... Qxd5 {[%clk
0:02:45.2]} 10. a3 {[%clk 0:02:52.5]} 10... Be7 {[%clk 0:02:42.5]} 11. Be3
{[%clk 0:02:49.2]} 11... Rad8 {[%clk 0:02:40.6]} 12. Nd2 {[%clk 0:02:45.2]}
12... Nd4 {[%clk 0:02:40]} 13. Re1 {[%clk 0:02:33.3]} 13... Rfe8 {[%clk
0:02:33.7]} 14. Bf1 {[%clk 0:02:31.7]} 14... Bf6 {[%clk 0:02:30.5]} 15. g3
{[%clk 0:02:26.7]} 15... c6 {[%clk 0:02:25.5]} 16. Bg2 {[%clk 0:02:27.3]} 16...
Qb5 {[%clk 0:02:24.5]} 17. Rb1 {[%clk 0:02:22.3]} 17... Qa4 {[%clk 0:02:21.1]}
18. Bxd4 {[%clk 0:02:19.7]} 18... exd4 {[%clk 0:02:22.5]} 19. b3 {[%clk
0:02:06.5]} 19... Qxa3 {[%clk 0:02:17.5]} 20. Rxe8+ {[%clk 0:01:58.8]} 20...
Rxe8 {[%clk 0:02:19.4]} 21. Ra1 {[%clk 0:02:00.3]} 21... Qc5 {[%clk 0:02:13.4]}
22. Ne4 {[%clk 0:01:56.7]} 22... Bxe4 {[%clk 0:02:13.8]} 23. Bxe4 {[%clk
0:01:57.9]} 23... a6 {[%clk 0:02:12.2]} 24. Qg4 {[%clk 0:01:49.4]} 24... g6
{[%clk 0:02:01.7]} 25. Qe2 {[%clk 0:01:20.2]} 25... Kg7 {[%clk 0:02:02.1]} 26.
Qd2 {[%clk 0:01:19.3]} 26... Bg5 {[%clk 0:02:00.9]} 27. f4 {[%clk 0:01:19.4]}
27... Bf6 {[%clk 0:02:01.6]} 28. Kf2 {[%clk 0:01:16.7]} 28... Rxe4 {[%clk
0:01:35.2]} 29. Ra5 {[%clk 0:01:01]} 29... b5 {[%clk 0:01:36.3]} 30. b4 {[%clk
0:00:48.6]} 30... Qh5 {[%clk 0:01:37.3]} 31. dxe4 {[%clk 0:00:49.3]} 31... Qxh2+
{[%clk 0:01:37.9]} 32. Ke1 {[%clk 0:00:46.9]} 32... Qxg3+ {[%clk 0:01:39.5]} 33.
Qf2 {[%clk 0:00:40.3]} 33... Qc3+ {[%clk 0:01:39]} 34. Qd2 {[%clk 0:00:36.9]}
34... Qg3+ {[%clk 0:01:39.9]} 35. Qf2 {[%clk 0:00:37.8]} 35... Qc3+ {[%clk
0:01:41.4]} 36. Qd2 {[%clk 0:00:38.4]} 36... Qf3 {[%clk 0:01:43]} 37. Qe2 {[%clk
0:00:20.4]} 37... Qxf4 {[%clk 0:01:40.8]} 38. Rxa6 {[%clk 0:00:21.4]} 38... h5
{[%clk 0:01:33.9]} 39. Rxc6 {[%clk 0:00:21]} 39... h4 {[%clk 0:01:35.3]} 40. Ra6
{[%clk 0:00:16.5]} 40... h3 {[%clk 0:01:34.7]} 41. Ra3 {[%clk 0:00:18.1]} 41...
Qc1+ {[%clk 0:01:32.7]} 0-1

[Event "*** Titled Tuesday 3|2 Blitz"]
[Site "Chess.com"]
[Date "2016.01.05"]
[Round "6"]
[White "Assasin14"]
[Black "LADIESGET2KNOWME"]
[Result "1-0"]
[WhiteElo "2001"]
[BlackElo "2295"]
[TimeControl "180+2"]
[EndTime "18:14:17 PST"]
[Termination "Assasin14 won by resignation"]

1. e4 {[%clk 0:02:59.6]} 1... e6 {[%clk 0:03:01.3]} 2. d4 {[%clk 0:03:00.2]}
2... d5 {[%clk 0:03:03.2]} 3. Nc3 {[%clk 0:03:01.5]} 3... Nf6 {[%clk 0:03:04.7]}
4. Bg5 {[%clk 0:03:02]} 4... Be7 {[%clk 0:03:06.1]} 5. e5 {[%clk 0:03:03]} 5...
Nfd7 {[%clk 0:03:07.6]} 6. h4 {[%clk 0:03:04.6]} 6... O-O {[%clk 0:03:09.1]} 7.
Qd2 {[%clk 0:03:01.9]} 7... c5 {[%clk 0:03:10]} 8. Nf3 {[%clk 0:02:59.2]} 8...
cxd4 {[%clk 0:03:10.7]} 9. Qxd4 {[%clk 0:02:56.1]} 9... Nc6 {[%clk 0:03:09.4]}
10. Qf4 {[%clk 0:02:57]} 10... f6 {[%clk 0:02:51.5]} 11. exf6 {[%clk 0:02:52.5]}
11... Bxf6 {[%clk 0:02:53.4]} 12. Bxf6 {[%clk 0:02:37.9]} 12... Nxf6 {[%clk
0:02:50.5]} 13. O-O-O {[%clk 0:02:33.6]} 13... Qe7 {[%clk 0:02:22.8]} 14. Qd2
{[%clk 0:01:53.6]} 14... Bd7 {[%clk 0:02:17.4]} 15. Bb5 {[%clk 0:01:49.8]} 15...
Rfc8 {[%clk 0:01:55.6]} 16. Rhe1 {[%clk 0:01:48.3]} 16... a6 {[%clk 0:01:53.6]}
17. Bxc6 {[%clk 0:01:29.5]} 17... bxc6 {[%clk 0:01:55.5]} 18. Ne5 {[%clk
0:01:29.8]} 18... Rab8 {[%clk 0:01:55.9]} 19. Nxd7 {[%clk 0:00:41.1]} 19... Nxd7
{[%clk 0:01:49.8]} 20. Ne2 {[%clk 0:00:37.3]} 20... e5 {[%clk 0:01:22.8]} 21.
Nd4 {[%clk 0:00:26.6]} 21... Nc5 {[%clk 0:01:22.3]} 22. Nxc6 {[%clk 0:00:21]}
22... Rxc6 {[%clk 0:01:16.3]} 23. Qxd5+ {[%clk 0:00:21.9]} 23... Qe6 {[%clk
0:01:12.6]} 24. Rxe5 {[%clk 0:00:19.6]} 24... Qxd5 {[%clk 0:01:06.5]} 25. Rexd5
{[%clk 0:00:21.5]} 25... Ne4 {[%clk 0:01:03]} 26. f3 {[%clk 0:00:21.6]} 26...
Nf6 {[%clk 0:01:02.3]} 27. Rd8+ {[%clk 0:00:22.3]} 27... Kf7 {[%clk 0:01:02.9]}
28. Rxb8 {[%clk 0:00:23.2]} 28... h5 {[%clk 0:00:58.6]} 29. Rb7+ {[%clk
0:00:23.8]} 29... Kg6 {[%clk 0:00:58.2]} 30. Re1 {[%clk 0:00:25]} 30... Nd5
{[%clk 0:00:55.4]} 31. Re5 {[%clk 0:00:25.8]} 31... Nf4 {[%clk 0:00:53.5]} 32.
Rg5+ {[%clk 0:00:26.8]} 32... Kf6 {[%clk 0:00:54.7]} 33. Rgxg7 {[%clk
0:00:27.5]} 33... Ne2+ {[%clk 0:00:50.8]} 34. Kd2 {[%clk 0:00:28.3]} 34... Nd4
{[%clk 0:00:52.7]} 35. c3 {[%clk 0:00:29.2]} 35... Nf5 {[%clk 0:00:51.9]} 36.
Rbf7+ {[%clk 0:00:29.5]} 36... Ke6 {[%clk 0:00:53.3]} 37. Rg6+ {[%clk
0:00:30.8]} 1-0

[Event "*** Titled Tuesday 3|2 Blitz"]
[Site "Chess.com"]
[Date "2016.01.05"]
[Round "6"]
[White "Smirnov_Pavel"]
[Black "Hikaru"]
[Result "1/2-1/2"]
[WhiteElo "2345"]
[BlackElo "2884"]
[TimeControl "180+2"]
[EndTime "18:14:21 PST"]
[Termination "Game drawn by repetition"]

1. d4 {[%clk 0:03:01.9]} 1... Nf6 {[%clk 0:02:59.6]} 2. c4 {[%clk 0:03:02.9]}
2... e6 {[%clk 0:03:00]} 3. g3 {[%clk 0:03:03.1]} 3... c5 {[%clk 0:03:00]} 4.
Nf3 {[%clk 0:03:03.7]} 4... cxd4 {[%clk 0:02:39]} 5. Nxd4 {[%clk 0:03:04.6]}
5... Qc7 {[%clk 0:02:38.6]} 6. Nc3 {[%clk 0:03:04.9]} 6... a6 {[%clk 0:02:36]}
7. Bg2 {[%clk 0:03:05.8]} 7... Nc6 {[%clk 0:02:35.1]} 8. O-O {[%clk 0:03:05.6]}
8... Bc5 {[%clk 0:02:35.4]} 9. Nb3 {[%clk 0:02:53.4]} 9... Be7 {[%clk
0:02:36.1]} 10. Bf4 {[%clk 0:02:53.6]} 10... Qd8 {[%clk 0:02:29]} 11. Qd2 {[%clk
0:02:51.1]} 11... O-O {[%clk 0:02:29.3]} 12. Rfd1 {[%clk 0:02:52.1]} 12... b6
{[%clk 0:02:18.8]} 13. Bd6 {[%clk 0:02:20.3]} 13... Bb7 {[%clk 0:02:18.1]} 14.
Bxe7 {[%clk 0:02:16.9]} 14... Qxe7 {[%clk 0:02:20]} 15. Na4 {[%clk 0:02:18]}
15... b5 {[%clk 0:02:00.4]} 16. cxb5 {[%clk 0:02:09.7]} 16... axb5 {[%clk
0:02:01]} 17. Nac5 {[%clk 0:02:05.9]} 17... Bc8 {[%clk 0:02:01.8]} 18. Qd6
{[%clk 0:02:00.4]} 18... Ra7 {[%clk 0:01:51.1]} 19. a3 {[%clk 0:01:33.2]} 19...
Qxd6 {[%clk 0:01:50.4]} 20. Rxd6 {[%clk 0:01:33.9]} 20... Ne8 {[%clk 0:01:52.1]}
21. Rdd1 {[%clk 0:01:32.8]} 21... d5 {[%clk 0:01:44.1]} 22. e4 {[%clk
0:01:33.3]} 22... dxe4 {[%clk 0:01:44.9]} 23. Bxe4 {[%clk 0:01:31.8]} 23... Ne5
{[%clk 0:01:46.2]} 24. Nd4 {[%clk 0:01:29.7]} 24... Nc4 {[%clk 0:01:20.2]} 25.
Nxb5 {[%clk 0:01:19.2]} 25... Ra5 {[%clk 0:01:20.9]} 26. a4 {[%clk 0:01:05.5]}
26... Nxb2 {[%clk 0:01:22]} 27. Rd8 {[%clk 0:00:35.8]} 27... Nf6 {[%clk
0:01:23.1]} 28. Rxf8+ {[%clk 0:00:36]} 28... Kxf8 {[%clk 0:01:25]} 29. Bc6
{[%clk 0:00:32.2]} 29... Ke7 {[%clk 0:01:18.6]} 30. f4 {[%clk 0:00:23.9]} 30...
Nd5 {[%clk 0:01:19.1]} 31. Bxd5 {[%clk 0:00:17.6]} 31... exd5 {[%clk 0:01:21]}
32. Re1+ {[%clk 0:00:17.1]} 32... Kf6 {[%clk 0:01:22.3]} 33. Re5 {[%clk
0:00:08]} 33... Nxa4 {[%clk 0:01:09.7]} 34. Nxa4 {[%clk 0:00:08.2]} 34... Rxb5
{[%clk 0:01:09.4]} 35. Nc3 {[%clk 0:00:08.3]} 35... Rb8 {[%clk 0:01:03.9]} 36.
Nxd5+ {[%clk 0:00:09]} 36... Kg6 {[%clk 0:01:05.6]} 37. Ne7+ {[%clk 0:00:08.4]}
37... Kf6 {[%clk 0:01:07.2]} 38. Nd5+ {[%clk 0:00:08.5]} 38... Kg6 {[%clk
0:01:08.2]} 39. Ne7+ {[%clk 0:00:09.4]} 39... Kf6 {[%clk 0:01:09.7]} 40. Nd5+
{[%clk 0:00:10.6]} 1/2-1/2